Cogmind - Beta 15 @@@ ROGUE MODE // 2025.10.09 @ 16:30:38 Player: Galactipunk Result: Destroyed by Y-54 Guardian with Flak Gun Performance ------------- Evolutions (0) 0 Regions Visited (3) 600 Robots Destroyed (11) 55 Value Destroyed (354) 354 Prototype IDs (0) 0 Alien Tech Used (0) 0 Bonus (0) 0 TOTAL SCORE: 1009 Bonus ------- None Cogmind --------- Core Integrity 0/250 Matter 300/300 Energy 199/200 System Corruption 0% Temperature Cool (12) Movement Rolling (110) Location -7/Recycling Parts ------- > --- POWER (1) -------- Subdweller Power Source > --- PROPULSION (2) --- Subdweller Monowheel > --- UTILITY (2) ------ Subdweller Optics Signal Interpreter > --- WEAPON (2) ------- Subdweller Laser Subdweller Beam Cannon > --- INVENTORY (5) ---- Subdweller Power Source Subdweller Monowheel Subdweller Laser Beam Cannon Peak State ------------ > --- POWER ------------ Subdweller Power Source > --- PROPULSION ------- Subdweller Monowheel Subdweller Monowheel > --- UTILITY ---------- Subdweller Optics Signal Interpreter > --- WEAPON ----------- Subdweller Laser Battle Rifle > --- INVENTORY -------- Subdweller Power Source Subdweller Laser Beam Cannon Subdweller Beam Cannon Barrage Gun [Rating: 14] Favorites ----------- Power Subdweller Power Source Engine Subdweller Power Source Propulsion Wheel Wheel Wheel Utility Signal Interpreter Device Heat Sink Storage Small Storage Unit Processor Signal Interpreter Weapon Subdweller Laser Energy Gun Subdweller Laser Energy Cannon Subdweller Beam Cannon Ballistic Gun Barrage Gun Build | -11 -10 -10 -7 ------- Run | Yrd Mat Sub Rec Slots Evolved . | . . . . Power . | . . . . Propulsion . | . . . . Utility . | . . . . Weapon . | . . . . Parts Attached 29 | 6 5 18 . Power 7 | 1 1 5 . Engine 7 | 1 1 5 . Core . | . . . . Reactor . | . . . . Propulsion 6 | 2 . 4 . Treads . | . . . . Leg . | . . . . Wheel 6 | 2 . 4 . Hover . | . . . . Flight . | . . . . Utility 6 | 1 2 3 . Device 4 | . 1 3 . Storage 1 | 1 . . . Processor 1 | . 1 . . Hackware . | . . . . Protection . | . . . . Artifact . | . . . . Weapon 10 | 2 2 6 . Energy Gun 6 | 2 1 3 . Energy Cannon 2 | . 1 1 . Ballistic Gun 2 | . . 2 . Ballistic Cannon . | . . . . Launcher . | . . . . Special Weapon . | . . . . Impact Weapon . | . . . . Slashing Weapon . | . . . . Piercing Weapon . | . . . . Special Melee Weapon . | . . . . Unidentified Prototypes . | . . . . Parts Lost 2 | . . 2 . Power 1 | . . 1 . Propulsion . | . . . . Utility 1 | . . 1 . Weapon . | . . . . Highest Loss Streak 1 | . . 1 . To Critical Strikes . | . . . . Average Backups 3 | . 2 4 3 Power . | . 1 . 1 Propulsion . | . . . . Utility . | . . . . Weapon 2 | . 1 2 2 Tool/Special . | . . . . Unused Backups 3 | . . 2 1 Power . | . . . . Propulsion 1 | . . 1 . Utility . | . . . . Weapon 2 | . . 1 1 Tool/Special . | . . . . Average Slot Usage (%) 98 | . 93 99 96 Engine 14 | . 14 14 14 Wheel 27 | . 28 28 24 Device 13 | . 7 13 14 Storage 1 | . 11 . . Processor 12 | . 2 14 14 Energy Gun 15 | . 20 15 14 Energy Cannon 5 | . 7 2 14 Ballistic Gun 7 | . . 10 . Peak Build Rating 14 | 6 7 14 13 Average Rating 10 | 4 6 10 12 On Entrance 6 | . 6 7 13 Naked Turns . | . . . . Heaviest Build 19 | 11 16 19 19 Greatest Support 40 | 20 20 40 40 Greatest Overweight (x) . | . . . . Average Overweight (x) . | . . . . Largest Inventory Capacity 8 | 8 8 5 5 Average Capacity 5 | 6 7 5 5 Most Carried 5 | 3 5 5 4 Average Carried 3 | 1 2 4 3 Final Capacity 8 | 8 5 5 5 Final Carried 4 | 1 4 3 4 Class Distribution -------------------- 57% | Scavenger-Mutant 42% | Mutant Dominant Class ---------------- Mutant | -10/Materials Scavenger-Mutant | -10/Subcaves Scavenger-Mutant | -7/Recycling Resources | -11 -10 -10 -7 ----------- Run | Yrd Mat Sub Rec Matter Collected 682 | 260 34 388 . Remotely . | . . . . Salvage Created 399 | . 34 365 . Parts 28 | . 1 27 . Haulers Intercepted . | . . . . Recyclers Shooed . | . . . . Parts Field Recycled . | . . . . Retrieved Matter . | . . . . Parts Self-Destructed 23 | . . 23 . Prevented . | . . . . Kills | -11 -10 -10 -7 ------- Run | Yrd Mat Sub Rec Combat Hostiles Destroyed 9 | . 1 8 . Guns 8 | . . 8 . Cannons 1 | . 1 . . Classes Destroyed 4 | . 1 3 . Turret 2 | . . 2 . Swarmer 2 | . . 2 . Grunt 1 | . 1 . . Subdweller 6 | . . 6 . Best Kill Streak 2 | . 1 2 . Combat Bots Only 2 | . 1 2 . Max Kills in Single Turn 1 | . 1 1 . Gunslinging . | . . . . Exploded . | . . . . Melee . | . . . . Uniques/NPCs Destroyed . | . . . . Combat | -11 -10 -10 -7 -------- Run | Yrd Mat Sub Rec Hostile Shots Fired 80 | . 3 68 9 Missed 24 | . 1 19 4 Hits 56 | . 2 49 5 Projectile 56 | . 2 49 5 Critical Strikes 2 | . . 2 . Damage Taken 864 | . 23 801 40 Core 252 | . . 219 33 Absorbed by Shields . | . . . . Core Remaining (%) 100 | 100 . . . Volleys Fired 66 | 1 4 61 . Largest 2 | 1 2 2 . Hottest 140 | 50 100 140 . Shots Fired 127 | 1 8 118 . Gun 115 | 1 5 109 . Cannon 12 | . 3 9 . Launcher . | . . . . Special . | . . . . Kinetic 48 | . . 48 . Thermal 72 | 1 5 66 . Explosive . | . . . . Electromagnetic 7 | . 3 4 . Robot Hit Streak 16 | . 4 16 . Robot Miss Streak 3 | . 1 3 . Penetration Max . | . . . . Secondary Targets 1 | . . 1 . Max Gunslinging Chain 1 | . . 1 . Shots Hit Robots 53 | . 7 46 . Core Hits 16 | . 2 14 . Critical Kills 1 | . . 1 . Critical Parts Destroyed . | . . . . Critical Strikes 3 | . 1 2 . Burn 1 | . 1 . . Meltdown 1 | . . 1 . Destroy 1 | . . 1 . Melee Attacks . | . . . . Impact . | . . . . Slashing . | . . . . Piercing . | . . . . Sneak Attacks . | . . . . Combat Hostiles . | . . . . Follow-up Attacks . | . . . . Damage Inflicted 992 | . 104 885 3 Guns 799 | . 51 748 . Cannons 190 | . 53 137 . Explosions . | . . . . Melee . | . . . . Ramming 3 | . . . 3 Kinetic 318 | . . 318 . Thermal 644 | . 77 567 . Explosive . | . . . . Electromagnetic 27 | . 27 . . Impact . | . . . . Slashing . | . . . . Piercing . | . . . . Highest Corruption . | . . . . Average Corruption . | . . . . Corruption Purged . | . . . . Corruption Blocked . | . . . . Overload Shots . | . . . . Overflow Damage . | . . . . Projectiles . | . . . . Explosions . | . . . . Melee . | . . . . Knockbacks . | . . . . Impact . | . . . . Kinetic . | . . . . Secondary . | . . . . Self-Inflicted Damage 1 | . . . 1 Shots . | . . . . Rammed 1 | . . . 1 Targets Rammed 1 | . . . 1 Kicked . | . . . . Crushed . | . . . . Highest Temperature 116 | 10 36 116 . Average Temperature 31 | 7 17 36 . Received Heat Transfer 210 | . 12 186 12 Siege Activations . | . . . . Martial Activations . | . . . . Shielding Activations . | . . . . Robots Disrupted . | . . . . Combat Hostiles . | . . . . Robots Corrupted . | . . . . Combat Hostiles . | . . . . Parts Fried . | . . . . Impact Corruptions . | . . . . Robots Melted 1 | . . 1 . Combat Hostiles . | . . . . Parts Melted . | . . . . Heat Transferred 957 | . 247 710 . Parts Sabotaged . | . . . . Parts Stolen . | . . . . Parts Stripped . | . . . . Power Chain Reactions . | . . . . Alert | -11 -10 -10 -7 ------- Run | Yrd Mat Sub Rec Maximum Alert Level . | . . . . Low Security (%) 100 | 100 100 . 100 Level 1 . | . . . . Level 2 . | . . . . Level 3 . | . . . . Level 4 . | . . . . Level 5 . | . . . . High Security . | . . . . Max Security . | . . . . Peak Influence 43 | . 20 . 43 Initial 43 | . . . 43 Average 6 | . 4 . 7 Influence Increases 186 | . 20 155 11 Destroy 0b10 Robot/C 100 | . 20 80 . Successful Hack 11 | . . . 11 Lose Combat Pursuer 75 | . . 75 . Influence Decreases 186 | . 20 64 102 Entered New Map 48 | . . . 48 Time Decay 128 | . 20 54 54 Lost Part 10 | . . 10 . Squads Dispatched 1 | . 1 . . Investigation 1 | . 1 . . Extermination . | . . . . Reinforcement . | . . . . Assault . | . . . . Garrison . | . . . . Intercept . | . . . . Searches Triggered . | . . . . Construction Impeded . | . . . . Haulers Reinforced . | . . . . Active Scanning Responses . | . . . . Cargo Convoy Interrupts . | . . . . Stealth | -11 -10 -10 -7 --------- Run | Yrd Mat Sub Rec Distress Signals . | . . . . Communications Jammed . | . . . . Distress Signals . | . . . . Times Spotted 16 | . 2 13 1 Peak Tracking Total 4 | . 2 4 . Tactical Retreats 4 | . . 4 . Traps | -11 -10 -10 -7 ------- Run | Yrd Mat Sub Rec Traps Triggered 2 | . . 2 . Indirectly . | . . . . Trap Hack Attempts . | . . . . Triggered . | . . . . Disarmed . | . . . . Reprogrammed . | . . . . Reused . | . . . . Traps Extracted . | . . . . Installed . | . . . . Triggered . | . . . . Machines | -11 -10 -10 -7 ---------- Run | Yrd Mat Sub Rec Machines Disabled 2 | . . 2 . Max in Single Turn 1 | . . 1 . Machines Repaired . | . . . . Machines Dismantled . | . . . . Machines Sabotaged . | . . . . Overloaded Fab Kills . | . . . . Hacking | -11 -10 -10 -7 --------- Run | Yrd Mat Sub Rec Machines Accessed 8 | . 1 . 7 Terminals 5 | . 1 . 4 Fabricators . | . . . . Repair Stations . | . . . . Recycling Units 3 | . . . 3 Scanalyzers . | . . . . Garrison Access . | . . . . Total Hacks 24 | . 5 . 19 Successful 15 | . 3 . 12 Failed 9 | . 2 . 7 Catastrophic 3 | . 1 . 2 Database Lockouts . | . . . . Manual . | . . . . Terminals 16 | . 5 . 11 Fabricators . | . . . . Repair Stations . | . . . . Recycling Units 8 | . . . 8 Scanalyzers . | . . . . Garrison Access . | . . . . Terminal Hacks 9 | . 3 . 6 Record 5 | . . . 5 Part Schematic 1 | . . . 1 Alert Level 1 | . 1 . . Hauler Manifests 1 | . 1 . . Registered Components 1 | . 1 . . Fabricator Hacks . | . . . . Repair Station Hacks . | . . . . Recycling Unit Hacks 6 | . . . 6 Process 1 | . . . 1 Report Inventory 3 | . . . 3 Retrieve Matter 1 | . . . 1 Retrieve Components 1 | . . . 1 Scanalyzer . | . . . . Garrison Access Hacks . | . . . . Unauthorized Hacks . | . . . . Terminals . | . . . . Fabricators . | . . . . Repair Stations . | . . . . Recycling Units . | . . . . Scanalyzers . | . . . . Garrison Access . | . . . . Data Cores Recovered . | . . . . Used . | . . . . Hacking Detections 5 | . 1 . 4 Full Trace Events . | . . . . Feedback Events . | . . . . Feedback Blocked . | . . . . Robot Schematics Acquired . | . . . . Robots Built . | . . . . Authchips . | . . . . Time . | . . . . Total Robot Build Rating . | . . . . Part Schematics Acquired 1 | . . . 1 Parts Built . | . . . . Authchips . | . . . . Time . | . . . . Total Part Build Rating . | . . . . Parts Repaired . | . . . . Time . | . . . . Parts Recycled . | . . . . Recycled Matter 19 | . . . 19 Retrieved Matter 19 | . . . 19 Retrieved Components 2 | . . . 2 Parts Scanalyzed . | . . . . Part Schematics Acquired . | . . . . Parts Damaged . | . . . . Bothacking | -11 -10 -10 -7 ------------ Run | Yrd Mat Sub Rec Used RIF Installer . | . . . . Robots Hacked . | . . . . Non-combat . | . . . . Combat . | . . . . Robot Hacks Applied . | . . . . Relay Couplers Released . | . . . . Fabnet Peak Effective % . | . . . . Robots Rewired . | . . . . Allies Hacked . | . . . . Hacks Repelled . | . . . . Allies | -11 -10 -10 -7 -------- Run | Yrd Mat Sub Rec Total Allies . | . . . . Largest Group . | . . . . Highest-Rated Group . | . . . . Highest-Rated Ally . | . . . . Total Orders . | . . . . Ally Attacks . | . . . . Total Damage . | . . . . Kills . | . . . . Allies Corrupted . | . . . . Allies Melted . | . . . . Intel | -11 -10 -10 -7 ------- Run | Yrd Mat Sub Rec Active Infowar (turns) 407 | . . 109 298 Optics 407 | . . 109 298 Robot Analysis Total . | . . . . Derelict Logs Recovered . | . . . . Drone Launches . | . . . . Drone Recoveries . | . . . . Exploration | -11 -10 -10 -7 ------------- Run | Yrd Mat Sub Rec Turns Passed 1546 | 43 122 1083 298 Spaces Moved 1439 | 37 118 1015 269 Core 4 | 4 . . . Treads . | . . . . Legs . | . . . . Wheels 1435 | 33 118 1015 269 Hover . | . . . . Flight . | . . . . Fastest Speed 50 | 50 80 80 110 Average Speed 86 | 76 80 81 110 Slowest Speed 110 | 80 80 110 110 Overloaded Moves . | . . . . Propulsion Burnouts . | . . . . Robots Hopped . | . . . . Potential Cave-ins . | . . . . Cave-ins Triggered . | . . . . Exploration Rate (%) 40 | 4 30 62 65 Regions Visited 3 Branch Regions 2 Pre-discovered Areas . | . . . . Known Exits Taken 2 | . 1 1 . Unknown Exits Taken 1 | 1 . . . Scrap Searched 2 | . . 2 . Spaces Dug 1 | . . 1 . Terrain Destroyed 1 | . . 1 . Melee . | . . . . Projectile 1 | . . 1 . AOE . | . . . . Terrain Rammed . | . . . . Walls Destroyed . | . . . . Machines Disabled . | . . . . Actions | -11 -10 -10 -7 --------- Run | Yrd Mat Sub Rec Total 1611 | 50 135 1154 272 Wait 18 | . . 18 . Move 1436 | 36 117 1014 269 Hop . | . . . . Pick Up 35 | 7 6 21 1 Fast Attach . | . . . . Attach 9 | 6 1 2 . Detach . | . . . . Swap 23 | . 5 18 . Drop 23 | . 2 20 1 Fire 66 | 1 4 61 . Melee . | . . . . Ram 1 | . . . 1 Kick . | . . . . Crush . | . . . . Escape Stasis . | . . . . Rewire . | . . . . Trap . | . . . . Miscellaneous . | . . . . Route ------- -11/Scrapyard -10/Materials (discovered 2 exits: [*Min] / *Sub) -10/Subcaves (discovered 2 exits: *Mat / *Rec) -7/Recycling History --------- Turn | Location | Event 14 | -11/Scrapyard | Discovered new exit (range 16) 44 | -11/Scrapyard | Entered Materials 45 | -10/Materials | Met a group of wandering Federalists 88 | -10/Materials | Discovered new exit (range 7) 135 | -10/Materials | Discovered new exit (range 12) 165 | -10/Materials | Identified exit to Subcaves 166 | -10/Materials | Entered Subcaves 167 | -10/Subcaves | Continued accompanying wandering Federalists (1) 167 | -10/Subcaves | Approached by a straggling Scientist 244 | -10/Subcaves | Discovered new exit (range 6) 247 | -10/Subcaves | Identified exit to Materials 309 | -10/Subcaves | Build established: Mutant 351 | -10/Subcaves | Disturbed a concealed Subdweller 723 | -10/Subcaves | Shifting Twisted Machinery released Sub. Monowheel 729 | -10/Subcaves | Shifting Twisted Machinery released Sub. Shrapnel Launcher 877 | -10/Subcaves | Shifting Twisted Machinery released Battle Rifle 882 | -10/Subcaves | Build established: Scavenger-Mutant 1051 | -10/Subcaves | Core integrity fell below 50% 1095 | -10/Subcaves | Shifting Twisted Machinery released Piercing Trap 1143 | -10/Subcaves | Shifting Twisted Machinery released Sub. Beam Cannon 1186 | -10/Subcaves | A swath of the cavern ceiling suddenly collapsed 1225 | -10/Subcaves | Discovered new exit (range 4) 1236 | -10/Subcaves | Core integrity fell below 20% 1248 | -10/Subcaves | Identified exit to Recycling 1249 | -10/Subcaves | Entered Recycling 1250 | -7/Recycling | Met a Zionite searching for Scraptown 1547 | -7/Recycling | Destroyed by Y-54 Guardian with Flak Gun Last Messages --------------- building almost any component or robot for which detailed schematics are provided. Initiating a new build process requires an [Authchip], but an internal generator provides all the energy required for fabrication, and matter input is drawn from the local network as per fabricator specification, while some schematics may call for preassembled subcomponents. Advanced fabricators can complete complex tasks more quickly. 01519_ Connecting with Terminal... >>Query(Riot Gun) This weapon is without a doubt based on the EM shotgun, though heavily modified to concentrate a greater electromagnetic burst within a much shorter range. As these are the primary armament of [Derelict] wizards, combat protocol dictates that units engage them at extreme range whenever possible. 01547_ Y-54 Guardian springs to life. Map ----- +----------------------------------------------------+ | ?????????????????????????????????????????????????? | | ?????????????????????????????????????????????????? | | ?????????????????????????????????????????????????? | | ?????????????????????????????????????????????????? | | ?????????????????????????????????????????????????? | | ?????????????????????????????????????????????????? | | ?????????????????????????????????????????????????? | | ?????????????????????????????????????????????????? | | ?????????????????????????????????????????????????? | | ?????????????????????????????????????????????????? | | ????????????????????##############?##########????? | | ????????????????????# #?# #????? | | ????????????????????# #?# """ ###??? | | ????????????????????# #?# """ ""#??? | | ????????????????????# #?# """ ""#??? | | ????????????????????+ #?# T"#??? | | ????????????????????# #?# """ ""#??? | | ????????????????????# ### """ ""#??? | | ????????????????????# ## """ ###??? | | ????????????????????# #?# #????# | | ????????????????????# #####+######### # | | ??????????? "?? ??# #??# + | | ??????????# ??# #???# # | | ??????????# #########+########## # | | ??????????# # | | ??????????# @ + | | ??????????# # | | ??????????# # | | ??????? % ####Y### # | | ?????? ##+##+######## + | | ??????? ????# # ########### | | ????????????# # #?????????# | | ????????????# # #?????????# | | ????????????# # ################## ## | | ????????????# # # #????????##? | | ????????????# / + "T" #??????????? | | ????????????# # # #??????????? | | ????????????# # # #??????????? | | ????????????# # + #??????????? | | ????????????# # # """ #??????????? | | ????????????# # # """ #??????????? | | ????????????# % # # """ #??????????? | | ????????????#####/######## # #??????????? | | ????????????????# #??????# ##########??????????? | | ????????????????# #####??#####???????????????????? | | ????????????????# #"""#??????????????????????????? | | ??????????#?????# #"Y"###????###########?????????? | | ???######## ##### ] = #????#* ! ????????? | | ? #????# ] %] ####????? | | ? ###### + #????? | +----------------------------------------------------+ Best States ------------- Heat Dissipation 39 Energy Generation 15 Energy Capacity 250 Matter Stores 300 Matter Capacity 300 Sight Range 21 Terrain Scan Density 10 Evasion (%) 44 Item Schematics ----------------- Adv. Terrain Scan Processor | -7/Recycling | Hacked Robot Schematics ------------------ None Fabricated ------------ Nothing Repaired ---------- Nothing Alien Tech Used ----------------- None Achievements -------------- None Challenges ------------ None Game ------ Seed DeflectorSingularityRouter Manual? 0 Play Time 00:24:41 Cumulative 7.3 hours Start 2025.10.09 @ 16:09:29 End 2025.10.09 @ 16:30:38 Sessions 1 Manual Loads 0 Difficulty Rogue Special Mode None Game No. 9 Rogue 9 Adventurer 0 Explorer 0 Win Type - Total 0 Types 0/0/0/0/0/0/0/0/0/0 Lore% 10 Gallery% 13 Achievement% 13 Wizard Run 0 Options --------- Layout 1 ASCII 0 Keyboard 0 Movement Mouse Keybinds 0 Fullscreen 2 Font 24/Proggy Map View 50x35 Zoom Use 0% Tactical HUD 1 Map Filters NONE Filters NONE Steam 1 RUN: 45d3e412-7ac5-4e05-baa8-67e2563e4143